bitfinex-derivatives/quotes_SOLF0:USTF0_20240920
["timestamp","ask_amount","ask_price","bid_price","bid_amount"]
[1726850998341,16.24,147.89,147.82,1.3265]
[1726850999535,3.3815,147.86,147.82,1.3265]
[1726850999737,16.24,147.89,147.82,1.3265]
[1726850999938,2.6194,147.96,147.8,2.6564]
[1726850999939,16.24,147.87,147.8,2.6564]
[1726851000147,16.24,147.87,147.81,3.3824]
[1726851000330,16.24,147.87,147.8,1.3514]
[1726851000844,16.24,147.85,147.8,1.3514]
[1726851001039,16.24,147.85,147.75,17.5459]
[1726851001040,16.24,147.83,147.75,1.3059]
[1726851001227,20.31,147.88,147.73,3.43483038]
[1726851001228,16.24,147.79,147.73,3.43483038]
[1726851001433,16.24,147.79,147.72,1.3274]
[1726851001632,16.24,147.83,147.73,16.24]
[1726851001836,3.3827,147.81,147.73,16.24]
[1726851002444,3.3828,147.8,147.76,3.3834]
[1726851002742,3.3828,147.8,147.73,19.59025365]
[1726851003040,3.3828,147.8,147.77,3.3834]
[1726851004042,3.3824,147.82,147.73,19.59025365]
[1726851004255,16.24,147.87,147.78,16.24]
[1726851004438,3.3817,147.85,147.81,3.3824]
[1726851004639,3.3817,147.85,147.79,1.2773]
[1726851004839,16.24,147.87,147.79,2.616]
[1726851005039,3.3817,147.85,147.81,3.3823]
[1726851005444,3.3817,147.85,147.79,2.616]
[1726851005643,16.24,147.89,147.8,16.24]
[1726851005945,16.24,147.89,147.81,3.43840333]
[1726851006150,3.381,147.88,147.8,17.5875]
[1726851006342,17.525,147.9,147.8,17.5875]
[1726851006649,3.3809,147.89,147.82,16.24]
[1726851006949,16.24,147.93,147.82,19.62158699]
[1726851007247,16.24,147.91,147.82,19.62158699]
[1726851007848,16.24,147.91,147.85,3.3815]
[1726851008035,16.24,147.91,147.82,19.62158699]
[1726851008347,16.24,147.91,147.86,3.3813]
[1726851008348,3.3808,147.89,147.86,3.3813]
[1726851008740,16.24,147.91,147.82,19.62158699]
[1726851008741,3.3805,147.9,147.87,3.3811]
[1726851008946,16.24,147.93,147.82,19.62158699]
[1726851009145,16.24,147.93,147.84,16.24]
[1726851009345,16.24,147.93,147.85,2.7896]
[1726851009852,3.3804,147.91,147.88,3.3808]
[1726851010148,3.3804,147.91,147.85,6.15697454]
[1726851010352,16.24,147.93,147.85,6.15697454]
[1726851010742,16.24,147.95,147.86,16.24]
[1726851011050,16.24,147.95,147.86,17.6538]
[1726851011238,3.3797,147.94,147.86,17.6538]
[1726851011754,16.24,147.97,147.93,3.3797]
[1726851011948,99.76155294,147.98,147.88,16.24]
[1726851012745,16.24,147.97,147.88,16.24]
[1726851013439,16.24,147.95,147.86,17.6538]
[1726851013647,16.24,147.93,147.86,1.4138]
[1726851014048,16.24,147.91,147.85,6.15697454]
[1726851014245,16.24,147.91,147.85,2.7896]
[1726851014554,3.3811,147.88,147.85,6.1711]
[1726851014742,16.24,147.91,147.83,3.40274264]
[1726851015052,16.24,147.91,147.81,4.0649]
[1726851015446,16.24,147.91,147.81,7.4144638]
[1726851015648,16.24,147.91,147.82,16.24]
[1726851016058,3.3809,147.89,147.85,3.3815]
[1726851016358,16.24,147.91,147.85,3.3815]
[1726851016739,3.3811,147.88,147.85,3.3815]
[1726851017352,3.3807,147.89,147.86,3.3813]
[1726851017550,16.24,147.91,147.82,16.24]
[1726851017757,3.3807,147.9,147.82,16.24]
[1726851017958,16.24,147.91,147.82,16.24]
[1726851018559,3.3807,147.89,147.86,3.3812]
[1726851020459,3.381,147.88,147.85,3.3815]
[1726851020864,16.24,147.89,147.81,4.0649]
[1726851021069,16.24,147.87,147.81,2.7588]
[1726851021365,16.24,147.85,147.8,135.24]
[1726851021753,16.24,147.83,147.8,135.24]
[1726851021953,3.3828,147.8,147.77,3.3832]
[1726851022150,3.3828,147.8,147.74,20.1141]
[1726851022151,16.24,147.81,147.74,3.8741]
[1726851022667,16.24,147.81,147.77,3.3834]
[1726851022668,3.3828,147.8,147.77,3.3834]
[1726851024161,16.24,147.81,147.74,2.5897]
[1726851025668,3.3829,147.8,147.77,3.3833]
[1726851026368,3.383,147.79,147.76,3.3836]
[1726851026764,16.24,147.81,147.74,2.5897]
[1726851027467,3.383,147.79,147.76,3.3835]
[1726851028266,3.383,147.79,147.77,3.3834]
[1726851028460,3.3828,147.8,147.77,3.3834]
[1726851029770,16.25,147.83,147.75,3.32521315]
[1726851029963,16.25,147.83,147.74,18.8397]
[1726851030572,3.3826,147.81,147.78,3.383]
[1726851031277,3.3826,147.81,147.79,3.3829]
[1726851033366,3.3823,147.82,147.79,3.3829]
[1726851034277,6.7611,147.9,147.76,3.33671674]
[1726851034278,7.06588225,148.05,147.81,16.25]
[1726851034485,7.06588225,148.05,147.8,16.25]
[1726851034486,16.25,148.02,147.9,16.25]
[1726851034662,16.25,147.99,147.96,3.3789]
[1726851034982,3.3775,148.03,147.86,16.25]
[1726851034983,16.25,147.97,147.86,16.25]
[1726851035282,16.25,147.97,147.93,3.3796]
[1726851035472,16.25,147.97,147.9,3.40087956]
[1726851035779,16.25,147.97,147.86,16.25]
[1726851035970,25.97,147.99,147.95,3.3792]
[1726851036163,25.97,147.99,147.89,3.40358592]
[1726851036380,25.97,147.96,147.92,3.3799]
[1726851036676,25.97,147.96,147.85,135.3]
[1726851036677,25.95,147.96,147.87,3.3846414]
[1726851036878,25.95,147.96,147.92,3.3798]
[1726851038181,25.95,147.96,147.87,3.41238159]
[1726851038182,1.376,147.97,147.93,3.3797]
[1726851040982,1.2478,147.99,147.9,25.95]
[1726851041176,1.4082,148.01,147.9,25.95]
[1726851041570,1.4082,148.01,147.95,3.3793]
[1726851041870,1.4082,148.01,147.89,1.349]
[1726851042069,3.3782,148.0,147.89,4.64606074]
[1726851042379,3.3782,148.0,147.89,1.349]
[1726851042577,3.3782,148.0,147.96,3.3791]
[1726851043371,3.3784,147.99,147.95,3.3792]
[1726851043580,1.4082,148.01,147.95,3.3792]
[1726851044174,3.3782,148.0,147.95,3.3792]
[1726851046268,3.3782,148.0,147.9,3.32781753]
[1726851046474,3.3782,148.0,147.89,1.349]
[1726851046875,3.3782,148.0,147.89,4.77335673]
[1726851047086,3.3782,148.0,147.89,1.349]
[1726851047477,1.4082,148.01,147.89,4.7736992]
[1726851047678,1.4082,148.01,147.89,1.349]
[1726851047878,1.4082,148.01,147.89,4.66013965]
[1726851048072,1.4082,148.01,147.89,1.349]
[1726851048278,4.7863,148.01,147.89,1.349]
[1726851048583,4.7863,148.01,147.89,4.65371812]
[1726851048788,4.7863,148.01,147.97,3.3787]
[1726851049081,1.4082,148.01,147.9,25.95]
[1726851049979,1.4082,148.01,147.99,3.3783]
[1726851050476,3.3776,148.03,148.0,3.3782]
[1726851051385,3.3776,148.03,147.99,3.3783]
[1726851051681,1.3403,148.04,147.9,25.95]
[1726851051871,25.95,148.03,147.97,3.3787]
[1726851052269,3.378,148.01,147.97,3.3787]
[1726851052785,3.3777,148.02,147.98,3.3786]
[1726851052984,3.3777,148.02,147.9,25.95]
[1726851053183,25.95,148.03,147.97,3.3786]
[1726851053690,3.3779,148.01,147.9,25.95]
[1726851054383,3.3779,148.01,147.98,3.3784]
[1726851054597,1.3403,148.04,147.93,25.95]
[1726851054779,1.3403,148.04,147.94,2.7221]
[1726851055877,3.3776,148.03,148.0,3.378]
[1726851057886,16.22,148.02,147.94,2.7221]
[1726851058094,16.22,148.0,147.94,2.7221]
[1726851058391,16.22,148.0,147.94,1.347]
[1726851058983,3.3785,147.99,147.96,3.3789]
[1726851059183,16.22,148.02,147.94,1.347]
[1726851059586,3.3782,148.0,147.97,3.3787]
[1726851060792,3.3784,147.99,147.96,3.379]
[1726851061082,16.22,148.02,147.96,3.379]
[1726851061281,3.3783,148.0,147.96,3.379]
[1726851062690,3.3784,147.99,147.96,3.379]
[1726851064901,3.3784,147.99,147.95,3.3792]
[1726851065303,3.3788,147.98,147.95,3.3792]
[1726851066905,3.3789,147.97,147.94,3.3794]
[1726851067398,3.3794,147.95,147.92,3.3799]
[1726851068095,3.3794,147.95,147.93,3.3798]
[1726851068297,16.22,147.99,147.9,2.7175]
[1726851068702,3.379,147.97,147.94,3.3794]
[1726851069397,3.379,147.97,147.95,3.3792]
[1726851069620,3.3787,147.98,147.91,19.63690501]
[1726851069906,1.3817,148.02,147.93,16.22]
[1726851070095,3.3783,148.0,147.97,3.3786]
[1726851070608,3.378,148.01,147.98,3.3786]
[1726851070903,1.3817,148.02,147.98,3.3786]
[1726851071101,16.22,148.04,147.99,3.3783]
[1726851071708,3.3778,148.02,147.99,3.3783]
[1726851073100,3.3776,148.03,147.96,1.3712]
[1726851073497,3.3776,148.03,148.0,3.3781]
[1726851074400,3.3777,148.02,148.0,3.3781]
[1726851075103,3.3776,148.03,148.0,3.3781]
[1726851075703,3.3772,148.05,147.97,16.22]
[1726851075899,17.5698,148.08,147.97,18.9281]
[1726851076097,17.5698,148.08,148.03,3.3774]
[1726851076302,3.3769,148.06,148.03,3.3774]
[1726851076511,3.3769,148.06,147.97,18.9281]
[1726851076711,3.377,148.05,147.97,18.9281]
[1726851077210,16.22,148.03,147.97,1.3182]
[1726851077600,16.22,148.05,148.0,3.378]
[1726851077801,16.22,148.07,147.97,17.5382]
[1726851078000,16.22,148.07,147.97,18.9498]
[1726851078210,1.3498,148.08,148.03,3.3774]
[1726851078420,17.5698,148.08,148.03,3.3774]
[1726851078911,3.377,148.06,148.03,3.3774]
[1726851079211,3.377,148.06,147.97,18.9498]
[1726851079212,17.5092,148.1,147.99,16.22]
[1726851080011,3.3767,148.07,147.99,16.22]
[1726851080710,17.5092,148.1,147.99,16.22]
[1726851080711,16.22,148.08,147.99,16.22]
[1726851080900,16.22,148.08,147.97,18.9498]
[1726851081312,3.377,148.06,147.99,16.22]
[1726851081508,16.22,148.08,147.99,16.22]
[1726851082018,3.3769,148.06,148.03,3.3773]
[1726851082199,3.3769,148.06,147.99,16.22]
[1726851082200,16.22,148.08,147.99,16.22]
[1726851082400,17.5092,148.1,148.05,3.377]
[1726851083204,3.3765,148.08,148.05,3.377]
[1726851084211,16.22,148.1,148.04,3.3771]
[1726851085013,16.22,148.13,148.03,3.32477708]
[1726851085202,3.3761,148.1,148.04,2.7579]
[1726851085410,3.3761,148.1,148.05,3.38962442]
[1726851085909,3.3761,148.1,148.07,3.3764]
[1726851086113,3.3761,148.1,148.05,3.38962442]
[1726851086313,3.3758,148.11,148.05,3.38962442]
[1726851086510,3.3758,148.11,148.07,3.3763]
[1726851086710,16.22,148.12,148.04,2.7579]
[1726851087102,2.8157,148.14,148.04,2.7579]
[1726851087319,106.36795732,148.21,148.06,16.22]
[1726851087614,17.5101,148.2,148.09,16.22]
[1726851087914,17.5101,148.2,148.1,17.6269]
[1726851088724,17.5101,148.2,148.13,3.375]
[1726851088909,16.22,148.18,148.1,1.4069]
[1726851090106,16.22,148.18,148.13,3.375]
[1726851090107,3.3744,148.17,148.13,3.375]
[1726851090311,3.3744,148.17,148.1,1.4069]
[1726851090508,1.2901,148.2,148.11,16.22]
[1726851090819,1.2901,148.2,148.14,3.3748]
[1726851091320,3.3745,148.17,148.13,3.3751]
[1726851091520,3.3745,148.17,148.11,17.6221]
[1726851091923,3.3745,148.17,148.14,3.375]
[1726851092131,3.3741,148.18,148.11,17.6221]
[1726851093021,3.3741,148.18,148.14,3.3748]
[1726851094020,3.3743,148.17,148.14,3.3748]
[1726851095416,3.3742,148.18,148.14,3.3748]
[1726851097226,20.27,148.25,148.14,3.38564763]
[1726851097521,16.22,148.24,148.15,16.22]
[1726851097735,3.3731,148.23,148.15,16.22]
[1726851097911,3.3731,148.23,148.16,1.3766]
[1726851098325,19.66099513,148.29,148.18,16.22]
[1726851098513,16.22,148.27,148.16,22.36070929]
[1726851098714,3.3726,148.25,148.16,22.36070929]
[1726851099813,3.3728,148.24,148.16,22.36070929]
[1726851100017,16.22,148.27,148.16,22.36070929]
[1726851100323,16.22,148.27,148.2,3.3735]
[1726851100324,17.5324,148.27,148.2,3.3735]
[1726851100725,3.3729,148.24,148.2,3.3735]
[1726851100920,3.3729,148.24,148.21,3.3733]
[1726851102133,1.3124,148.27,148.18,16.22]
[1726851103033,17.5324,148.27,148.16,22.36070929]
[1726851103533,36.49,148.25,148.16,4.78080929]
[1726851103835,16.22,148.23,148.16,1.3766]
[1726851104129,1.3124,148.27,148.16,1.3766]
[1726851104329,1.3124,148.27,148.18,16.22]
[1726851104522,3.3723,148.26,148.23,3.3729]
[1726851106123,4.6845,148.27,148.24,3.3727]
[1726851106330,3.3721,148.27,148.24,3.3727]
[1726851106732,3.3724,148.26,148.23,3.3729]
[1726851107124,13.4774,148.39,148.2,16.22]
[1726851107433,16.22,148.32,148.22,16.22]
[1726851107624,16.22,148.32,148.22,19.61810819]
[1726851108015,3.3718,148.29,148.25,3.3723]
[1726851108421,16.22,148.32,148.25,3.3723]
[1726851109228,3.3717,148.29,148.25,3.3723]
[1726851109424,16.22,148.32,148.25,3.3723]
[1726851110132,36.49,148.32,148.24,3.3726]
[1726851110537,3.3719,148.28,148.25,3.3724]
[1726851110738,42.58735151,148.33,148.22,19.61810819]
[1726851111035,3.3718,148.28,148.25,3.3723]
[1726851113626,3.3718,148.28,148.26,3.3722]
[1726851115345,16.22,148.31,148.25,3.3724]
[1726851115929,3.3719,148.28,148.25,3.3724]
[1726851116237,16.22,148.31,148.25,3.3724]
[1726851116541,3.3719,148.28,148.25,3.3724]
[1726851116842,16.22,148.31,148.24,3.3726]
[1726851117139,3.3721,148.27,148.22,16.22]
[1726851117335,16.22,148.31,148.22,16.22]
[1726851117942,3.3724,148.26,148.23,3.3728]
[1726851118330,3.3721,148.27,148.24,3.3727]
[1726851118845,3.372,148.27,148.22,16.22]
[1726851119341,3.3721,148.27,148.24,3.3725]
[1726851119745,16.22,148.31,148.24,3.3725]
[1726851119935,16.22,148.29,148.2,16.22]
[1726851120137,1.3487,148.28,148.2,16.22]
[1726851120351,16.22,148.25,148.18,134.94]
[1726851120649,3.3736,148.2,148.16,1.3766]
[1726851121043,16.22,148.21,148.13,16.22]
[1726851121234,16.22,148.21,148.1,137.7356]
[1726851121235,16.22,148.21,148.11,17.6065]
[1726851121435,4.7089,148.2,148.13,16.22]
[1726851121639,1.3352,148.2,148.13,16.22]
[1726851122347,1.3352,148.2,148.17,3.3741]
[1726851122647,1.3352,148.2,148.13,16.22]
[1726851123344,4.7088,148.2,148.16,3.3744]
[1726851123849,1.3352,148.2,148.15,3.3746]
[1726851124039,1.3352,148.2,148.13,16.22]
[1726851124436,1.3352,148.2,148.14,3.3748]
[1726851124951,1.3352,148.2,148.13,16.22]
[1726851125249,17.5552,148.2,148.11,17.6065]
[1726851125447,1.3352,148.2,148.11,17.6065]
[1726851126137,3.374,148.19,148.15,3.3747]
[1726851126340,1.3352,148.2,148.13,16.22]
[1726851126740,3.3736,148.21,148.16,3.3744]
[1726851127145,1.3487,148.22,148.16,3.3744]
[1726851127348,3.3735,148.21,148.17,3.3741]
[1726851127743,17.5387,148.24,148.15,16.22]
[1726851127943,37.8087,148.24,148.15,16.22]
[1726851128344,37.8087,148.24,148.15,19.5947]
[1726851128954,3.374,148.19,148.15,19.5947]
[1726851131055,3.374,148.19,148.15,3.3747]
[1726851131247,16.22,148.2,148.11,1.3865]
[1726851131554,16.22,148.18,148.11,1.3865]
[1726851131739,3.375,148.14,148.11,4.7621]
[1726851131944,3.375,148.14,148.11,1.3865]
[1726851132251,3.375,148.14,148.1,4.7878]
[1726851132551,3.375,148.14,148.1,1.4121]
[1726851132754,3.3749,148.15,148.11,3.3755]
[1726851133053,3.3749,148.15,148.1,1.4121]
[1726851133258,3.3749,148.15,148.11,3.3755]
[1726851133652,3.3746,148.16,148.1,17.6321]
[1726851133951,36.49,148.17,148.09,3.376]
[1726851134357,3.3754,148.13,148.09,3.376]
[1726851134545,39.7828393,148.17,148.09,3.376]
[1726851134850,3.3759,148.1,148.04,17.6321]
[1726851135051,36.49,148.13,148.04,17.6321]
[1726851135443,3.3765,148.08,148.04,17.6321]
[1726851135750,1.3114,148.12,148.04,17.6321]
[1726851136053,1.3114,148.12,148.06,3.3767]
[1726851136554,1.3114,148.12,148.04,17.6321]
[1726851136951,4.6869,148.12,148.04,17.6321]
[1726851137252,16.22,148.15,148.06,16.22]
[1726851137757,1.3583,148.18,148.07,16.22]
[1726851138145,3.375,148.14,148.1,3.3757]
[1726851138347,16.22,148.15,148.05,16.22]
[1726851138851,36.49,148.13,148.04,1.4121]
[1726851139256,20.27,148.13,148.04,1.4121]
[1726851139459,3.3763,148.09,148.06,3.3768]
[1726851140352,3.3764,148.08,148.05,3.3769]
[1726851140743,16.22,148.1,148.03,1.3376]
[1726851141757,3.3764,148.08,148.03,1.3376]
[1726851142254,3.3766,148.07,148.04,3.3771]
[1726851142450,1.4121,148.11,148.03,1.3376]
[1726851142849,1.4121,148.11,148.04,3.3771]
[1726851143256,3.3765,148.08,148.04,3.3771]
[1726851143655,16.22,148.09,148.01,134.98]
[1726851144157,16.22,148.09,148.02,3.3776]
[1726851144452,3.377,148.06,148.02,3.3776]
[1726851144754,16.22,148.07,147.99,17.6146]
[1726851144946,36.49,148.07,147.99,1.3946]
[1726851145350,21.6821,148.11,147.99,17.6146]
[1726851145549,37.9021,148.11,148.01,16.22]
[1726851145958,3.3767,148.07,148.01,16.22]
[1726851146356,37.9021,148.11,148.01,16.22]
[1726851146862,36.49,148.09,147.99,17.6146]
[1726851147057,37.9021,148.11,147.99,17.6146]
[1726851147265,37.9021,148.11,148.01,16.22]
[1726851148064,3.3765,148.08,148.04,3.3772]
[1726851148257,37.9021,148.11,148.04,3.3772]
[1726851148564,3.3769,148.06,148.03,3.3774]
[1726851148760,3.3769,148.06,147.99,17.6146]
[1726851149156,3.3769,148.06,148.03,3.3773]
[1726851150362,16.22,148.09,147.99,17.6146]
[1726851150556,17.6321,148.11,148.01,16.22]
[1726851150957,3.3766,148.08,148.01,16.22]
[1726851151158,17.6321,148.11,148.01,16.22]
[1726851151362,3.3759,148.1,148.07,3.3764]
[1726851151861,3.35100993,148.14,148.05,16.22]
[1726851152062,3.35100993,148.14,148.05,17.5364]
[1726851152567,3.3759,148.11,148.05,17.5364]
[1726851152965,19.57100993,148.14,148.06,3.38951563]
[1726851153165,3.3756,148.12,148.05,17.5364]
[1726851153363,3.3756,148.12,148.06,3.36316962]
[1726851153671,3.3755,148.12,148.09,3.376]
[1726851154258,3.3752,148.13,148.1,3.3758]
[1726851154463,2.679,148.15,148.07,16.22]
[1726851154964,3.3751,148.14,148.07,16.22]
[1726851155171,2.679,148.15,148.07,19.59621555]
[1726851155570,3.3754,148.13,148.09,3.3759]
[1726851156866,3.3755,148.12,148.09,3.3759]
[1726851158477,16.22,148.12,148.05,1.3164]
[1726851159062,16.22,148.14,148.05,17.5364]
[1726851159275,2.679,148.15,148.05,17.5364]
[1726851159469,2.679,148.15,148.06,3.45566885]
[1726851159688,3.3754,148.12,148.06,3.45566885]
[1726851159978,2.679,148.15,148.06,3.45566885]
[1726851160370,3.3754,148.12,148.06,3.45566885]
[1726851160974,3.3754,148.12,148.09,3.3759]
[1726851162068,16.22,148.14,148.05,1.3164]
[1726851162470,3.3759,148.11,148.05,1.3164]
[1726851163071,17.609,148.14,148.05,17.5364]
[1726851163072,3.3754,148.12,148.05,17.5364]
[1726851163271,1.389,148.14,148.05,17.5364]
[1726851163475,1.389,148.14,148.07,16.22]
[1726851163683,1.389,148.14,148.1,3.3757]
[1726851163876,1.389,148.14,148.07,16.22]
[1726851164284,3.3754,148.12,148.09,3.376]
[1726851164683,1.389,148.14,148.07,16.22]
[1726851164888,3.3754,148.12,148.09,3.3761]
[1726851165178,3.3754,148.12,148.07,16.22]
[1726851165481,1.389,148.14,148.07,16.22]
[1726851165880,3.3751,148.14,148.11,3.3755]
[1726851166582,3.3751,148.14,148.07,16.22]
[1726851167383,3.3751,148.14,148.11,3.3755]
[1726851168389,3.3752,148.13,148.11,3.3755]
[1726851169182,3.3755,148.12,148.07,16.22]
[1726851169486,36.49,148.16,148.07,16.22]
[1726851170081,3.3755,148.12,148.07,16.22]
[1726851170477,3.3755,148.12,148.09,3.3759]
[1726851171090,36.49,148.16,148.09,3.3759]
[1726851171795,36.49,148.16,148.08,3.3762]
[1726851172695,36.49,148.16,148.09,3.3761]
[1726851173290,36.49,148.14,148.05,17.5364]
[1726851173484,36.49,148.14,148.05,1.3164]
[1726851173485,3.3763,148.09,148.05,1.3164]
[1726851173681,36.49,148.14,148.05,1.3164]
[1726851173996,36.49,148.14,148.07,3.3764]
[1726851174187,36.49,148.14,148.05,1.3164]
[1726851174990,16.22,148.11,148.03,16.22]
[1726851175195,36.49,148.11,148.01,17.4972]
[1726851175599,3.3763,148.08,148.05,3.3769]
[1726851175893,3.3763,148.08,148.03,16.22]
[1726851176299,3.3762,148.09,148.06,3.3767]
[1726851177296,3.3759,148.1,148.07,3.3765]
[1726851177898,10.37,148.11,148.06,10.37]
[1726851178105,10.37,148.11,148.07,10.37]
[1726851178398,1.3969,148.13,148.08,10.37]
[1726851178399,10.37,148.13,148.08,10.37]
[1726851178593,10.37,148.14,148.08,10.37]
[1726851178898,3.3753,148.13,148.1,3.3758]
[1726851179102,3.3753,148.13,148.1,13.7458]
[1726851180001,10.37,148.14,148.1,10.37]
[1726851180002,3.3755,148.12,148.1,10.37]
[1726851180792,3.3755,148.12,148.1,13.7459]
[1726851181193,10.37,148.14,148.01,1.2772]
[1726851181194,3.3758,148.11,148.01,1.2772]
[1726851181403,3.3758,148.11,148.08,3.3763]
[1726851181598,21.5693,148.16,148.06,3.38915392]
[1726851181890,21.5693,148.16,148.09,13.746]
[1726851181891,3.3755,148.12,148.09,13.746]
[1726851182213,3.3755,148.12,148.09,3.376]
[1726851184613,3.3754,148.13,148.1,3.3758]
[1726851184804,1.2993,148.16,148.07,16.21]
[1726851185006,1.2993,148.16,148.09,16.21]
[1726851185511,3.375,148.14,148.09,16.21]
[1726851185917,3.3748,148.15,148.09,16.21]
[1726851186616,3.3748,148.15,148.12,3.3753]
[1726851186919,3.3748,148.15,148.09,16.21]
[1726851187119,3.3748,148.15,148.12,3.3753]
[1726851187917,37.8653,148.2,148.11,16.21]
[1726851187918,1.3853,148.2,148.11,16.21]
[1726851188107,1.3853,148.2,148.13,16.21]
[1726851189220,16.21,148.24,148.13,16.21]
[1726851189407,17.4911,148.24,148.14,4.72093783]
[1726851189818,3.3738,148.19,148.14,4.72093783]
[1726851190511,3.3738,148.19,148.16,3.3744]
[1726851191213,17.4911,148.24,148.14,4.72093783]
[1726851191416,1.2811,148.24,148.15,17.6135]
[1726851191620,3.3733,148.22,148.19,3.3738]
[1726851192621,3.373,148.23,148.2,3.3735]
[1726851193020,1.2811,148.24,148.15,17.6135]
[1726851193624,1.2811,148.24,148.18,16.21]
[1726851194013,16.21,148.3,148.2,16.21]
[1726851195308,3.3726,148.25,148.2,16.21]
[1726851195903,3.3726,148.25,148.22,3.3731]
[1726851196108,16.21,148.3,148.2,16.21]
[1726851196109,36.48,148.3,148.2,16.21]
[1726851196309,36.48,148.3,148.2,3.3735]
[1726851196310,16.21,148.28,148.2,3.3735]
[1726851196506,16.21,148.3,148.2,16.21]
[1726851196710,36.48,148.3,148.2,16.21]
[1726851197024,16.21,148.28,148.2,3.3734]
[1726851197318,16.21,148.23,148.17,3.3742]
[1726851197625,16.21,148.23,148.15,2.7484]
[1726851197819,3.3735,148.21,148.15,2.7484]
[1726851198117,3.3735,148.21,148.18,3.374]
[1726851200717,3.3738,148.2,148.17,3.3742]
[1726851200914,39.78286762,148.25,148.15,1.4035]
[1726851200915,36.48,148.23,148.15,1.4035]
[1726851201112,3.30286762,148.25,148.11,1.3591]
[1726851201113,16.21,148.19,148.11,1.3591]
[1726851201308,3.3749,148.15,148.11,4.7345]
[1726851201918,16.21,148.19,148.11,1.3591]
[1726851202316,16.21,148.19,148.14,3.3748]
[1726851202523,3.3743,148.18,148.14,3.3748]
[1726851202920,3.3743,148.17,148.14,3.3748]
[1726851203526,3.3743,148.17,148.13,3.3751]
[1726851204824,3.3745,148.16,148.13,3.3751]
[1726851205024,16.21,148.19,148.11,1.3591]
[1726851205218,16.21,148.19,148.09,17.4885]
[1726851205427,36.48,148.19,148.09,17.4885]
[1726851206120,3.3749,148.15,148.11,3.3755]
[1726851206426,16.21,148.17,148.09,1.2785]
[1726851206627,16.21,148.15,148.07,1.3117]
[1726851207625,3.3753,148.13,148.07,1.3117]
[1726851208333,3.3753,148.13,148.1,3.3758]
[1726851208538,1.2969,148.18,148.08,16.21]
[1726851209031,3.3749,148.15,148.12,3.3754]
[1726851209224,1.2969,148.18,148.1,16.21]
[1726851209630,3.3747,148.16,148.12,3.3752]
[1726851209824,16.21,148.19,148.1,16.21]
[1726851210231,3.3744,148.17,148.14,3.3748]
[1726851211032,2.6783,148.2,148.12,16.21]
[1726851211734,3.3744,148.17,148.12,16.21]
[1726851212330,3.3744,148.17,148.14,3.375]
[1726851212731,3.3742,148.18,148.12,16.21]
[1726851213123,2.6783,148.2,148.12,16.21]
[1726851213442,3.374,148.19,148.12,16.21]
[1726851214121,3.3741,148.18,148.12,16.21]
[1726851215026,3.3739,148.19,148.14,16.21]
[1726851215631,3.3737,148.2,148.17,3.3743]